fUSD/lending_fUSD_20241023
["ID","MTS","AMOUNT","RATE_DAILY","PERIOD"]
[340713761,1729698653921,-575.34,0.00060547,120]
[340713762,1729698653932,-1048.1,0.00060547,120]
[340713763,1729698653942,-917.42,0.00060547,120]
[340713764,1729698653952,-943.91,0.00060547,120]
[340713765,1729698653962,-795.78,0.00060547,120]
[340713766,1729698653972,-500.0,0.00060547,120]
[340713767,1729698653982,-989.32,0.00060547,120]
[340713768,1729698653992,-643.8,0.00060547,120]
[340713769,1729698654001,-804.84,0.00060547,120]
[340713770,1729698654010,-899.84,0.00060547,120]
[340713771,1729698654020,-830.65,0.00060547,120]
[340713772,1729698654029,-359.67,0.00060548,30]
[340713773,1729698654040,-750.0,0.00060738,14]
[340713774,1729698654049,-288.7247,0.000608,120]
[340713775,1729698654058,-943.86,0.00060821,120]
[340713776,1729698654072,-629.38,0.00060821,120]
[340713777,1729698654083,-996.29,0.00060821,120]
[340713778,1729698654096,-865.12,0.00060821,120]
[340713779,1729698654109,-645.71,0.00060821,120]
[340713780,1729698654121,-955.26,0.00060821,120]
[340713781,1729698654134,-709.13,0.00060821,120]
[340713782,1729698654144,-828.02,0.00060821,120]
[340713783,1729698654155,-2591.27,0.00060821,120]
[340713784,1729698654166,-575.34,0.00060821,120]
[340713785,1729698654178,-1048.1,0.00060821,120]
[340713786,1729698654194,-917.42,0.00060821,120]
[340713787,1729698654209,-943.91,0.00060821,120]
[340713788,1729698654221,-795.78,0.00060821,120]
[340713789,1729698654235,-225.81379413,0.00060821,120]
[340713790,1729698654247,-989.32,0.00060821,120]
[340713791,1729698654260,-643.8,0.00060821,120]
[340713792,1729698654274,-804.84,0.00060821,120]
[340713793,1729698654286,-899.84,0.00060821,120]
[340713794,1729698654298,-830.65,0.00060821,120]
[340713795,1729698654311,-279.91,0.00060921,2]
[340713796,1729698654323,-151.0,0.00061,120]
[340713797,1729698654335,-151.0,0.00061,120]
[340713798,1729698654347,-151.0,0.00061,120]
[340713799,1729698654358,-165.324284,0.00061,120]
[340713800,1729698654370,-231.201993,0.00061,120]
[340713801,1729698654381,-231.201993,0.00061,120]
[340713802,1729698654392,-151.0,0.00061,120]
[340713803,1729698654403,-151.0,0.00061,120]
[340713804,1729698654414,-151.0,0.00061,120]
[340713805,1729698654425,-151.0,0.00061,120]
[340713806,1729698654439,-151.0,0.00061,120]
[340713807,1729698654450,-155.494573,0.00061,120]
[340713808,1729698654461,-153.979611,0.00061,120]
[340713809,1729698654473,-153.979611,0.00061,120]
[340713810,1729698654484,-212.270848,0.00061,120]
[340713811,1729698654494,-212.270848,0.00061,120]
[340713812,1729698654504,-629.4275505,0.00061095,120]
[340713813,1729698654515,-996.41234363,0.00061095,120]
[340713814,1729698654526,-865.34997858,0.00061095,120]
[340713815,1729698654537,-645.89660637,0.00061095,120]
[340713816,1729698654549,-955.26745835,0.00061095,120]
[340713817,1729698654561,-709.36456935,0.00061095,120]
[340713818,1729698654573,-828.17927073,0.00061095,120]
[340713819,1729698654584,-2591.5011,0.00061095,120]
[340713820,1729698654596,-575.39731792,0.00061095,120]
[340713821,1729698654607,-1048.33803346,0.00061095,120]
[340713822,1729698654618,-917.45010611,0.00061095,120]
[340713823,1729698654631,-943.91294798,0.00061095,120]
[340713824,1729698654644,-795.81826169,0.00061095,120]
[340713825,1729698654656,-989.4035943,0.00061095,120]
[340713826,1729698654668,-643.92262078,0.00061095,120]
[340713827,1729698654680,-805.06309627,0.00061095,120]
[340713828,1729698654692,-899.89953329,0.00061095,120]
[340713829,1729698654703,-830.81226941,0.00061095,120]
[340713830,1729698654713,-154.44145008,0.00061338,28]
[340713831,1729698654723,-943.86,0.00061369,120]
[340713832,1729698654733,-560.53,0.0006137,30]
[340713833,1729698654743,-359.67,0.0006137,30]
[340713834,1729698654754,-359.67,0.0006137,30]
[340713835,1729698654765,-359.67,0.0006137,30]
[340713836,1729698654777,-359.67,0.0006137,30]
[340713837,1729698654788,-521.06007516,0.00061379,2]
[340713838,1729698654799,-500.0,0.000614,120]
[340713839,1729698654811,-500.0,0.00061517,120]
[340713840,1729698654822,-150.0,0.0006186,120]
[340713841,1729698654832,-943.86,0.00061917,120]
[340713842,1729698654844,-293.32314409,0.00062,120]
[340713843,1729698654855,-300.0,0.00062,120]
[340713844,1729698654866,-109252.52382181,0.00062,60]
[340713845,1729698654877,-500.66,0.00062119,120]
[340713846,1729698654889,-47006.6435389,0.0006212,120]
[340713847,1729698654900,-424.7,0.00062192,30]
[340713848,1729698654910,-424.7,0.00062192,30]
[340713849,1729698654921,-424.7,0.00062192,30]
[340713850,1729698654931,-424.7,0.00062192,30]
[340713851,1729698654942,-424.7,0.00062192,30]
[340713852,1729698654953,-424.7,0.00062192,30]
[340713853,1729698654964,-424.7,0.00062192,30]
[340713854,1729698654975,-848.23,0.00062192,30]
[340713855,1729698654985,-849.02,0.00062192,30]
[340713856,1729698654996,-397.36,0.00062192,30]
[340713857,1729698655006,-150.0,0.00062192,30]
[340713858,1729698655017,-151.0,0.00062219,120]
[340713859,1729698655027,-7303.99065696,0.00062316,15]
[340713860,1729698655038,-943.86,0.00062465,120]
[340713861,1729698655048,-11300.0,0.0006255,120]
[340713862,1729698655059,-150.0,0.00062585,120]
[340713863,1729698655070,-2924.89330005,0.000628,120]
[340713864,1729698655080,-1397.57903382,0.00062871,120]
[340713865,1729698655090,-27645.71274631,0.00063,10]
[340713866,1729698655101,-151.0,0.00063,120]
[340713867,1729698655112,-371.478156,0.00063,120]
[340713868,1729698655122,-945.084844,0.00063,120]
[340713869,1729698655133,-371.478156,0.00063,120]
[340713870,1729698655145,-945.084844,0.00063,120]
[340713871,1729698655156,-151.0,0.00063,120]
[340713872,1729698655167,-151.0,0.00063,120]
[340713873,1729698655178,-151.0,0.00063,120]
[340713874,1729698655193,-151.0,0.00063,120]
[340713875,1729698655203,-151.0,0.00063,120]
[340713876,1729698655214,-151.0,0.00063,120]
[340713877,1729698655225,-192.555557,0.00063,120]
[340713878,1729698655236,-151.0,0.00063,120]
[340713879,1729698655247,-151.0,0.00063,120]
[340713880,1729698655258,-151.0,0.00063,120]
[340713881,1729698655270,-151.0,0.00063,7]
[340713882,1729698655281,-197.081843,0.00063,120]
[340713883,1729698655291,-151.0,0.00063,120]
[340713884,1729698655302,-197.081843,0.00063,120]
[340713885,1729698655312,-151.0,0.00063,120]
[340713886,1729698655323,-157.352004,0.00063,120]
[340713887,1729698655334,-157.352004,0.00063,120]
[340713888,1729698655344,-151.0,0.00063,120]
[340713889,1729698655354,-151.0,0.00063,120]
[340713890,1729698655365,-353.438361,0.00063,120]
[340713891,1729698655375,-353.438361,0.00063,120]
[340713892,1729698655386,-151.0,0.00063,120]
[340713893,1729698655397,-151.0,0.00063,120]
[340713894,1729698655407,-151.0,0.00063,120]
[340713895,1729698655418,-151.0,0.00063,120]
[340713896,1729698655429,-1520.447551,0.00063,120]
[340713897,1729698655441,-1520.447551,0.00063,120]
[340713898,1729698655452,-151.0,0.00063,120]
[340713899,1729698655463,-151.0,0.00063,120]
[340713900,1729698655473,-151.0,0.00063,120]
[340713901,1729698655484,-226.001874,0.00063,120]
[340713902,1729698655495,-151.0,0.00063,120]
[340713903,1729698655507,-240.930184,0.00063,120]
[340713904,1729698655517,-240.930184,0.00063,120]
[340713905,1729698655528,-160.852464,0.00063,7]
[340713906,1729698655539,-160.852464,0.00063,7]
[340713907,1729698655550,-151.0,0.00063,120]
[340713908,1729698655560,-466.137514,0.00063,120]
[340713909,1729698655571,-466.137514,0.00063,120]
[340713910,1729698655582,-151.0,0.00063,120]
[340713911,1729698655592,-151.0,0.00063,120]
[340713912,1729698655602,-151.0,0.00063,120]
[340713913,1729698655613,-439.809282,0.00063,120]
[340713914,1729698655624,-439.809282,0.00063,120]
[340713915,1729698655635,-648.237276,0.00063,120]
[340713916,1729698655646,-648.237276,0.00063,120]
[340713917,1729698655656,-202.438363,0.00063,120]
[340713918,1729698655667,-151.0,0.00063,120]
[340713919,1729698655678,-202.438363,0.00063,120]
[340713920,1729698655690,-500.0,0.00063013,120]
[340713921,1729698655701,-500.0,0.00063013,120]
[340713922,1729698655712,-943.86,0.00063013,120]
[340713923,1729698655722,-359.67,0.00063014,30]
[340713924,1729698655733,-359.67,0.00063014,30]
[340713925,1729698655743,-359.67,0.00063014,30]
[340713926,1729698655754,-359.67,0.00063014,30]
[340713927,1729698655765,-359.67,0.00063014,30]
[340713928,1729698655775,-359.67,0.00063014,30]
[340713929,1729698655786,-359.67,0.00063014,30]
[340713930,1729698655796,-359.67,0.00063014,30]
[340713931,1729698655807,-359.67,0.00063014,30]
[340713932,1729698655818,-359.67,0.00063014,30]
[340713933,1729698655828,-359.67,0.00063014,30]
[340713934,1729698655840,-359.67,0.00063014,30]
[340713935,1729698655852,-359.67,0.00063014,30]
[340713936,1729698655862,-359.67,0.00063014,30]
[340713937,1729698655872,-359.67,0.00063014,30]
[340713938,1729698655883,-359.67,0.00063014,30]
[340713939,1729698655893,-359.67,0.00063014,30]
[340713940,1729698655903,-359.67,0.00063014,30]
[340713941,1729698655913,-359.67,0.00063014,30]
[340713942,1729698655926,-150.0,0.00063014,30]
[340713943,1729698655938,-291.45,0.00063014,30]
[340713944,1729698655948,-151.0,0.00063014,120]
[340713945,1729698655958,-169.723538,0.00063014,120]
[340713946,1729698655968,-177.641756,0.00063014,120]
[340713947,1729698655979,-177.641756,0.00063014,120]
[340713948,1729698655989,-151.0,0.00063014,120]
[340713949,1729698656000,-151.0,0.00063014,120]
[340713950,1729698656011,-500.0,0.00063014,120]
[340713951,1729698656022,-521.06007516,0.000631,2]
[340713952,1729698656034,-424.7,0.00063151,30]
[340713953,1729698656044,-424.7,0.00063151,30]
[340713954,1729698656055,-424.7,0.00063151,30]
[340713955,1729698656065,-424.7,0.00063151,30]
[340713956,1729698656076,-849.4,0.00063151,30]
[340713957,1729698656086,-424.7,0.00063151,30]
[340713958,1729698656096,-424.7,0.00063151,30]
[340713959,1729698656107,-170.37,0.00063151,30]
[340713960,1729698656117,-1298.87,0.00063151,30]
[340713961,1729698656128,-424.7,0.00063151,30]
[340713962,1729698656138,-849.09,0.00063151,30]
[340713963,1729698656149,-424.7,0.00063151,30]
[340713964,1729698656160,-424.7,0.00063151,30]
[340713965,1729698656170,-424.7,0.00063151,30]
[340713966,1729698656181,-424.7,0.00063151,30]
[340713967,1729698656196,-424.7,0.00063151,30]
[340713968,1729698656206,-424.7,0.00063151,30]
[340713969,1729698656217,-159.56,0.00063154,2]
[340713970,1729698656228,-279.91,0.00063185,2]
[340713971,1729698656240,-151.0,0.0006323,2]
[340713972,1729698656250,-943.86,0.00063561,120]
[340713973,1729698656262,-15251.01110601,0.000638,14]
[340713974,1729698656272,-1583.122619,0.000638,120]
[340713975,1729698656283,-151.0,0.000638,7]
[340713976,1729698656293,-151.0,0.000638,120]
[340713977,1729698656303,-208.728835,0.000638,120]
[340713978,1729698656531,-208.728835,0.000638,120]
[340713979,1729698656547,-151.0,0.000638,120]
[340713980,1729698656564,-151.0,0.000638,30]
[340713981,1729698656575,-188.533349,0.000638,30]
[340713982,1729698656584,-151.0,0.000638,120]
[340713983,1729698656594,-151.0,0.000638,120]
[340713984,1729698656604,-151.0,0.000638,120]
[340713985,1729698656613,-151.0,0.000638,120]
[340713986,1729698656623,-151.0,0.000638,120]
[340713987,1729698656632,-151.0,0.000638,120]
[340713988,1729698656641,-174.884624,0.000638,120]
[340713989,1729698656651,-1227.626613,0.000638,120]
[340713990,1729698656660,-174.884624,0.000638,120]
[340713991,1729698656670,-1227.626613,0.000638,120]
[340713992,1729698656679,-156.359125,0.000638,120]
[340713993,1729698656690,-156.359125,0.000638,120]
[340713994,1729698656699,-151.0,0.000638,120]
[340713995,1729698656708,-151.0,0.000638,120]
[340713996,1729698656718,-151.0,0.000638,120]
[340713997,1729698656727,-151.520226,0.000638,120]
[340713998,1729698656737,-151.0,0.000638,120]
[340713999,1729698656746,-163.599267,0.000638,120]
[340714000,1729698656756,-163.599267,0.000638,120]
[340714001,1729698656766,-430.16,0.00063836,30]
[340714002,1729698656776,-430.16,0.00063836,30]
[340714003,1729698656786,-430.16,0.00063836,30]
[340714004,1729698656796,-430.16,0.00063836,30]
[340714005,1729698656805,-430.16,0.00063836,30]
[340714006,1729698656815,-430.16,0.00063836,30]
[340714007,1729698656824,-300.0,0.00063836,30]
[340714008,1729698656833,-430.16,0.00063836,30]
[340714009,1729698656843,-566.17,0.00063836,30]
[340714010,1729698656853,-150.0,0.00063836,30]
[340714011,1729698656862,-150.0,0.00063836,30]
[340714012,1729698656871,-150.0,0.00063836,30]
[340714013,1729698656881,-150.0,0.00063836,30]
[340714014,1729698656890,-150.0,0.00063836,30]
[340714015,1729698656901,-150.0,0.00063836,30]
[340714016,1729698656910,-150.0,0.00063836,30]
[340714017,1729698656920,-150.0,0.00063836,30]
[340714018,1729698656930,-150.0,0.00063836,30]
[340714019,1729698656943,-150.0,0.00063836,30]
[340714020,1729698656953,-150.0,0.00063836,30]
[340714021,1729698656964,-150.0,0.00063836,30]
[340714022,1729698656975,-150.0,0.00063836,30]
[340714023,1729698656984,-150.0,0.00063836,30]
[340714024,1729698656994,-150.0,0.00063836,30]
[340714025,1729698657004,-150.0,0.00063836,30]
[340714026,1729698657014,-200.0,0.00063932,120]
[340714027,1729698657023,-2000.0,0.00064,7]
[340714028,1729698657033,-943.86,0.00064109,120]
[340714029,1729698657042,-584.96,0.0006411,30]
[340714030,1729698657051,-259.05,0.0006411,30]
[340714031,1729698657061,-424.7,0.0006411,30]
[340714032,1729698657071,-424.7,0.0006411,30]
[340714033,1729698657081,-424.7,0.0006411,30]
[340714034,1729698657091,-424.7,0.0006411,30]
[340714035,1729698657100,-424.7,0.0006411,30]
[340714036,1729698657110,-424.7,0.0006411,30]
[340714037,1729698657122,-154.44145008,0.00064192,28]
[340714038,1729698657131,-480.0,0.00064242,120]
[340714039,1729698657141,-242.0,0.000644,120]
[340714040,1729698657152,-500.66,0.00064439,120]
[340714041,1729698657161,-500.66,0.00064439,120]
[340714042,1729698657170,-500.66,0.00064439,120]
[340714043,1729698657180,-500.66,0.00064439,120]
[340714044,1729698657194,-500.82,0.00064439,120]
[340714045,1729698657203,-200000.0,0.0006444,30]
[340714046,1729698657212,-151.0,0.00064521,120]
[340714047,1729698657223,-150.0,0.0006453,120]
[340714048,1729698657233,-7303.99065696,0.00064633,15]
[340714049,1729698657243,-943.86,0.00064657,120]
[340714050,1729698657252,-150.0,0.00064658,30]
[340714051,1729698657264,-150.0,0.00064658,30]
[340714052,1729698657273,-150.0,0.00064658,30]
[340714053,1729698657283,-150.0,0.00064658,30]
[340714054,1729698657292,-430.16,0.00064658,30]
[340714055,1729698657302,-150.0,0.00064658,30]
[340714056,1729698657311,-430.16,0.00064658,30]
[340714057,1729698657321,-430.16,0.00064658,30]
[340714058,1729698657331,-150.0,0.00064658,30]
[340714059,1729698657340,-430.16,0.00064658,30]
[340714060,1729698657350,-150.0,0.00064658,30]
[340714061,1729698657360,-150.0,0.00064658,30]
[340714062,1729698657369,-150.0,0.00064658,30]
[340714063,1729698657378,-150.0,0.00064658,30]
[340714064,1729698657388,-14416.76101608,0.000647,120]
[340714065,1729698657397,-521.06007516,0.00064821,2]
[340714066,1729698657407,-1204.6658081,0.00064956,4]
[340714067,1729698657416,-247.4489126,0.00064956,4]
[340714068,1729698657426,-520.0,0.00064981,120]
[340714069,1729698657438,-1000.0,0.00064999,120]
[340714070,1729698657447,-150.0,0.00064999,120]
[340714071,1729698657457,-6592.42145844,0.00065,10]
[340714072,1729698657466,-2500.0,0.00065,2]
[340714073,1729698657476,-500000.0,0.00065,120]
[340714074,1729698657486,-500000.0,0.00065,120]
[340714075,1729698657495,-10486.0,0.00065,60]
[340714076,1729698657505,-151.0,0.00065,120]
[340714077,1729698657514,-151.0,0.00065,120]
[340714078,1729698657525,-151.0,0.00065,120]
[340714079,1729698657535,-231.201993,0.00065,120]
[340714080,1729698657544,-231.201993,0.00065,120]
[340714081,1729698657556,-151.0,0.00065,120]
[340714082,1729698657565,-151.0,0.00065,120]
[340714083,1729698657575,-151.0,0.00065,120]
[340714084,1729698657585,-151.0,0.00065,120]
[340714085,1729698657597,-151.0,0.00065,120]
[340714086,1729698657608,-151.0,0.00065,7]
[340714087,1729698657618,-153.979611,0.00065,120]
[340714088,1729698657629,-153.979611,0.00065,120]
[340714089,1729698657638,-151.0,0.00065,120]
[340714090,1729698657648,-208.728835,0.00065,120]
[340714091,1729698657658,-208.728835,0.00065,120]
[340714092,1729698657668,-151.0,0.00065,120]
[340714093,1729698657679,-212.270848,0.00065,120]
[340714094,1729698657691,-212.270848,0.00065,120]
[340714095,1729698657700,-151.0,0.00065,30]
[340714096,1729698657710,-151.0,0.00065,120]
[340714097,1729698657719,-151.0,0.00065,120]
[340714098,1729698657728,-151.0,0.00065,120]
[340714099,1729698657738,-151.0,0.00065,120]
[340714100,1729698657750,-285.483135,0.00065,120]
[340714101,1729698657760,-174.884624,0.00065,120]
[340714102,1729698657770,-1227.626613,0.00065,120]
[340714103,1729698657781,-174.884624,0.00065,120]
[340714104,1729698657790,-1227.626613,0.00065,120]
[340714105,1729698657801,-156.359125,0.00065,120]
[340714106,1729698657812,-156.359125,0.00065,120]
[340714107,1729698657823,-151.0,0.00065,120]
[340714108,1729698657832,-151.0,0.00065,120]
[340714109,1729698657842,-151.0,0.00065,120]
[340714110,1729698657853,-151.0,0.00065,120]
[340714111,1729698657863,-163.599267,0.00065,120]
[340714112,1729698657873,-163.599267,0.00065,120]
[340714113,1729698657882,-151.0,0.00065,120]
[340714114,1729698657891,-177.641756,0.00065,120]
[340714115,1729698657901,-177.641756,0.00065,120]
[340714116,1729698657910,-151.0,0.00065,120]
[340714117,1729698657920,-371.478156,0.00065,120]
[340714118,1729698657929,-945.084844,0.00065,120]
[340714119,1729698657940,-151.0,0.00065,120]
[340714120,1729698657949,-371.478156,0.00065,120]
[340714121,1729698657958,-945.084844,0.00065,120]
[340714122,1729698657968,-151.0,0.00065,120]
[340714123,1729698657977,-151.0,0.00065,120]
[340714124,1729698657988,-151.0,0.00065,120]
[340714125,1729698657999,-151.0,0.00065,120]
[340714126,1729698658008,-192.555557,0.00065,120]
[340714127,1729698658018,-158.457949,0.00065,120]
[340714128,1729698658028,-151.0,0.00065,120]
[340714129,1729698658039,-288.435212,0.00065,120]
[340714130,1729698658049,-151.0,0.00065,7]
[340714131,1729698658058,-197.081843,0.00065,120]
[340714132,1729698658069,-151.0,0.00065,120]
[340714133,1729698658079,-197.081843,0.00065,120]
[340714134,1729698658089,-151.0,0.00065,120]
[340714135,1729698658098,-157.352004,0.00065,120]
[340714136,1729698658109,-157.352004,0.00065,120]
[340714137,1729698658119,-151.0,0.00065,120]
[340714138,1729698658130,-151.0,0.00065,120]
[340714139,1729698658140,-353.438361,0.00065,120]
[340714140,1729698658149,-353.438361,0.00065,120]
[340714141,1729698658159,-151.0,0.00065,120]
[340714142,1729698658170,-151.0,0.00065,120]
[340714143,1729698658179,-151.0,0.00065,120]
[340714144,1729698658193,-292.734492,0.00065,120]
[340714145,1729698658208,-1520.447551,0.00065,120]
[340714146,1729698658218,-1520.447551,0.00065,120]
[340714147,1729698658229,-151.0,0.00065,120]
[340714148,1729698658239,-151.0,0.00065,120]
[340714149,1729698658248,-235.098044,0.00065,120]
[340714150,1729698658258,-221.692256,0.00065,120]
[340714151,1729698658270,-240.930184,0.00065,120]
[340714152,1729698658281,-240.930184,0.00065,120]
[340714153,1729698658291,-160.852464,0.00065,7]
[340714154,1729698658301,-160.852464,0.00065,7]
[340714155,1729698658310,-151.0,0.00065,120]
[340714156,1729698658319,-466.137514,0.00065,120]
[340714157,1729698658328,-466.137514,0.00065,120]
[340714158,1729698658337,-151.0,0.00065,120]
[340714159,1729698658347,-151.0,0.00065,120]
[340714160,1729698658356,-151.0,0.00065,120]
[340714161,1729698658366,-439.809282,0.00065,120]
[340714162,1729698658375,-439.809282,0.00065,120]
[340714163,1729698658385,-648.237276,0.00065,120]
[340714164,1729698658394,-648.237276,0.00065,120]
[340714165,1729698658403,-202.438363,0.00065,120]
[340714166,1729698658412,-151.0,0.00065,120]
[340714167,1729698658421,-202.438363,0.00065,120]
[340714168,1729698658431,-424.7,0.00065068,30]
[340714169,1729698658444,-424.7,0.00065068,30]
[340714170,1729698658453,-849.4,0.00065068,30]
[340714171,1729698658462,-424.7,0.00065068,30]
[340714172,1729698658471,-424.7,0.00065068,30]
[340714173,1729698658481,-424.7,0.00065068,30]
[340714174,1729698658490,-424.7,0.00065068,30]
[340714175,1729698658499,-424.7,0.00065068,30]
[340714176,1729698658509,-849.4,0.00065068,30]
[340714177,1729698658520,-424.7,0.00065068,30]
[340714178,1729698658529,-424.7,0.00065068,30]
[340714179,1729698658539,-756.83,0.00065068,30]
[340714180,1729698658548,-756.83,0.00065068,30]
[340714181,1729698658558,-756.83,0.00065068,30]
[340714182,1729698658569,-756.83,0.00065068,30]
[340714183,1729698658578,-756.83,0.00065068,30]
[340714184,1729698658587,-756.83,0.00065068,30]
[340714185,1729698658597,-1513.66,0.00065068,30]
[340714186,1729698658606,-756.83,0.00065068,30]
[340714187,1729698658616,-756.83,0.00065068,30]
[340714188,1729698658625,-756.83,0.00065068,30]
[340714189,1729698658634,-1513.66,0.00065068,30]
[340714190,1729698658645,-756.83,0.00065068,30]
[340714191,1729698658655,-756.83,0.00065068,30]
[340714192,1729698658664,-756.83,0.00065068,30]
[340714193,1729698658673,-756.83,0.00065068,30]
[340714194,1729698658682,-756.83,0.00065068,30]
[340714195,1729698658693,-756.83,0.00065068,30]
[340714196,1729698658703,-756.83,0.00065068,30]
[340714197,1729698658712,-756.83,0.00065068,30]
[340714198,1729698658721,-756.83,0.00065068,30]
[340714199,1729698658730,-756.83,0.00065068,30]
[340714200,1729698658740,-756.83,0.00065068,30]
[340714201,1729698658749,-943.86,0.00065205,120]
[340714202,1729698658758,-637.89858526,0.00065295,15]
[340714203,1729698658768,-279.91,0.00065449,2]
[340714204,1729698658778,-430.16,0.00065479,30]
[340714205,1729698658787,-430.16,0.00065479,30]
[340714206,1729698658797,-430.16,0.00065479,30]
[340714207,1729698658806,-430.16,0.00065479,30]
[340714208,1729698658816,-430.16,0.00065479,30]
[340714209,1729698658825,-430.16,0.00065479,30]
[340714210,1729698658834,-430.16,0.00065479,30]
[340714211,1729698658843,-430.16,0.00065479,30]
[340714212,1729698658853,-430.16,0.00065479,30]
[340714213,1729698658862,-431.59,0.00065479,30]
[340714214,1729698658871,-430.16,0.00065479,30]
[340714215,1729698658881,-430.16,0.00065479,30]
[340714216,1729698658890,-430.16,0.00065479,30]
[340714217,1729698658899,-430.16,0.00065479,30]
[340714218,1729698658909,-430.16,0.00065479,30]
[340714219,1729698658919,-430.16,0.00065479,30]
[340714220,1729698658928,-5079.76217763,0.000655,120]
[340714221,1729698658939,-500.0,0.00065753,120]
[340714222,1729698658948,-943.86,0.00065753,120]
[340714223,1729698658958,-500.0,0.00065754,120]
[340714224,1729698658967,-342.50402248,0.000658,120]
[340714225,1729698658976,-366.9955006,0.00065878,2]
[340714226,1729698658985,-4578.94952506,0.00065878,30]
[340714227,1729698658995,-9052.68281186,0.00065878,2]
[340714228,1729698659004,-647.571,0.00065947,120]
[340714229,1729698659014,-152.0,0.00065977,3]
[340714230,1729698659023,-183.90058242,0.00065977,5]
[340714231,1729698659033,-150.0,0.00065999,120]
[340714232,1729698659042,-300.0,0.00066,120]
[340714233,1729698659052,-5000.0,0.00066,120]
[340714234,1729698659062,-146112.84585172,0.00066,30]
[340714235,1729698659072,-151.0,0.00066,120]
[340714236,1729698659081,-151.0,0.00066,120]
[340714237,1729698659091,-231.201993,0.00066,120]
[340714238,1729698659100,-231.201993,0.00066,120]
[340714239,1729698659110,-151.0,0.00066,120]
[340714240,1729698659119,-151.0,0.00066,120]
[340714241,1729698659128,-151.0,0.00066,120]
[340714242,1729698659138,-151.0,0.00066,120]
[340714243,1729698659148,-197.603572,0.00066,7]
[340714244,1729698659157,-153.979611,0.00066,120]
[340714245,1729698659166,-153.979611,0.00066,120]
[340714246,1729698659175,-153.396725,0.00066,120]
[340714247,1729698659187,-208.728835,0.00066,120]
[340714248,1729698659197,-208.728835,0.00066,120]
[340714249,1729698659206,-151.0,0.00066,120]
[340714250,1729698659216,-212.270848,0.00066,120]
[340714251,1729698659226,-212.270848,0.00066,120]
[340714252,1729698659236,-151.0,0.00066,30]
[340714253,1729698659246,-151.0,0.00066,120]
[340714254,1729698659255,-151.0,0.00066,120]
[340714255,1729698659267,-151.0,0.00066,120]
[340714256,1729698659276,-151.0,0.00066,120]
[340714257,1729698659286,-174.884624,0.00066,120]
[340714258,1729698659295,-1227.626613,0.00066,120]
[340714259,1729698659304,-174.884624,0.00066,120]
[340714260,1729698659314,-1227.626613,0.00066,120]